lending/lending_fUSD_20251015
["ID","MTS","AMOUNT","RATE_DAILY","PERIOD"]
[391345906,1760555433231,-500.0,0.0001842,2]
[391345907,1760555433246,-277.35679052,0.0001842,2]
[391345908,1760555433258,-500.0,0.0001842,2]
[391345909,1760555433271,-500.0,0.0001842,2]
[391345910,1760555433283,-6274.90193592,0.00018425,2]
[391345911,1760555433294,-6274.90193592,0.00018426,2]
[391345912,1760555433306,-45409.92553296,0.00018428,2]
[391345914,1760555438161,-166.46,0.00018284,2]
[391345915,1760555438175,-2072.11574236,0.00018428,2]
[391345916,1760555438187,-8164.38579295,0.00018428,2]
[391345917,1760555438197,-55646.42706827,0.00018451,2]
[391345919,1760555438210,-16063.98694553,0.00018461,2]
[391345920,1760555438221,-500.0,0.00018486,2]
[391345921,1760555438231,-16063.98694553,0.00018486,2]
[391345922,1760555438241,-10315.90150246,0.000185,2]
[391345923,1760555438251,-4487.59218173,0.000185,2]
[391345924,1760555438261,-181.0,0.00018504,2]
[391345925,1760555438271,-166.66,0.00018537,2]
[391345926,1760555438282,-181.0,0.0001864,2]
[391345927,1760555438293,-181.0,0.00018693,2]
[391345928,1760555438302,-10315.90150246,0.000187,2]
[391345929,1760555438312,-500.0,0.0001876,2]
[391345930,1760555438321,-1000.0,0.0001876,2]
[391345931,1760555438330,-1610.01232771,0.00018778,2]
[391345932,1760555438340,-1500.0,0.00018796,2]
[391345933,1760555438349,-181.0,0.0001886,2]
[391345934,1760555438359,-10315.90150246,0.000189,2]
[391345935,1760555438368,-1600.0,0.00018987,2]
[391345936,1760555438378,-500.0,0.00019,7]
[391345937,1760555438388,-362.09,0.00019,7]
[391345938,1760555438397,-500.0,0.00019034,2]
[391345939,1760555438407,-181.0,0.00019093,2]
[391345940,1760555438417,-10315.90150246,0.000191,2]
[391345941,1760555438428,-151.0,0.00019178,2]
[391345942,1760555438437,-10315.90150246,0.000193,2]
[391345943,1760555438447,-1000.0,0.00019302,2]
[391345944,1760555438457,-904.41888656,0.00019302,2]
[391345945,1760555438466,-500.0,0.00019308,2]
[391345946,1760555438476,-2000.0,0.00019344,2]
[391345947,1760555438486,-1000.0,0.00019438,2]
[391345948,1760555438496,-700.0,0.00019452,2]
[391345949,1760555438506,-1610.01232771,0.00019455,2]
[391345950,1760555438517,-10315.90150246,0.000195,2]
[391345951,1760555438526,-287.52929271,0.000195,2]
[391345952,1760555438536,-958.0,0.000195,2]
[391345953,1760555438546,-300.0,0.000195,2]
[391345954,1760555438556,-8208.72786275,0.00019538,2]
[391345955,1760555438566,-181.0,0.0001954,2]
[391345956,1760555438576,-2066.596,0.00019564,2]
[391345957,1760555438587,-173.611,0.00019564,2]
[391345958,1760555438597,-500.0,0.00019573,2]
[391345959,1760555438606,-461.00697767,0.00019573,2]
[391345960,1760555438616,-500.0,0.00019573,2]
[391345961,1760555438625,-500.0,0.00019582,2]
[391345962,1760555438635,-500.0,0.00019599,2]
[391345963,1760555438644,-500.0,0.00019599,2]
[391345964,1760555438653,-500.0,0.00019599,2]
[391345965,1760555438663,-500.0,0.00019599,2]
[391345966,1760555438672,-500.0,0.00019599,2]
[391345967,1760555438682,-500.0,0.00019599,2]
[391345968,1760555438692,-500.0,0.00019599,2]
[391345969,1760555438703,-500.0,0.00019599,2]
[391345970,1760555438712,-500.0,0.00019599,2]
[391345971,1760555438723,-500.0,0.00019599,2]
[391345972,1760555438733,-500.0,0.00019599,2]
[391345973,1760555438743,-500.0,0.00019599,2]
[391345974,1760555438753,-500.0,0.00019599,2]
[391345975,1760555438764,-500.0,0.00019599,2]
[391345976,1760555438775,-500.0,0.00019599,2]
[391345977,1760555438784,-500.0,0.00019599,2]
[391345978,1760555438794,-500.0,0.00019599,2]
[391345979,1760555438804,-500.0,0.00019599,2]
[391345980,1760555438814,-500.0,0.00019599,2]
[391345981,1760555438825,-500.0,0.00019599,2]
[391345982,1760555438835,-500.0,0.00019599,2]
[391345983,1760555438845,-500.0,0.00019599,2]
[391345984,1760555438856,-500.0,0.00019599,2]
[391345985,1760555438870,-500.0,0.00019599,2]
[391345986,1760555438880,-500.0,0.00019599,2]
[391345987,1760555438890,-500.0,0.00019599,2]
[391345988,1760555438899,-500.0,0.00019599,2]
[391345989,1760555438910,-500.0,0.00019599,2]
[391345990,1760555438919,-500.0,0.00019599,2]
[391345991,1760555438929,-500.0,0.00019599,2]
[391345992,1760555438939,-624.04837889,0.00019599,2]
[391345993,1760555438949,-500.0,0.00019599,2]
[391345994,1760555438959,-1839.81,0.00019599,2]
[391345995,1760555438971,-20496.51780809,0.000196,2]
[391345996,1760555440195,-817.31434984,0.000196,2]
[391345997,1760555440212,-435.22115147,0.000196,2]
[391345998,1760555440302,-9720.60829613,0.000196,2]
[391346006,1760555442980,-531.38952428,0.00017008,2]
[391346007,1760555443051,-313.88566959,0.00017008,2]
[391346008,1760555443210,-253.27962337,0.00017008,2]
[391346012,1760555445915,-1201.44307599,0.00017008,2]
[391346013,1760555599358,500.0,0.00026677,120]
[391346015,1760556201490,500.0,0.00025842,120]
[391346020,1760556629395,-562.4891089,0.00013699,2]
[391346032,1760556632063,-70.4708911,0.00013699,2]
[391346034,1760556632073,-195.0,0.0001378,2]
[391346035,1760556632082,-516.60306017,0.0001378,2]
[391346036,1760556632093,-718.78087629,0.0001378,2]
[391346037,1760556632118,-1264.61606354,0.0001378,2]
[391346038,1760556632127,-195.0,0.00013861,2]
[391346039,1760556632137,-154.6995179,0.00014024,2]
[391346040,1760556632148,-145.3004821,0.00014024,2]
[391346041,1760556632157,-106.81775975,0.00014126,2]
[391346042,1760556632170,-88.18224025,0.00014126,2]
[391346043,1760556632179,-2500.0,0.00014126,2]
[391346044,1760556632189,-540.11436831,0.00014126,2]
[391346045,1760556632200,-601.95225677,0.00014126,2]
[391346046,1760556632209,-300.0,0.00014349,2]
[391346047,1760556632218,-194.05318659,0.00014695,2]
[391346048,1760556632227,-300.0,0.00014795,2]
[391346049,1760556632237,-300.0,0.00014795,2]
[391346050,1760556632248,-5.67307454,0.00014795,2]
[391346051,1760556632263,-325.37006335,0.00014795,2]
[391346052,1760556632273,-240.60875826,0.000149,2]
[391346053,1760556632284,-886.3998712,0.000149,2]
[391346054,1760556632293,-99.77801524,0.00014973,2]
[391346055,1760556632305,-368.0,0.00014973,2]
[391346056,1760556632316,-32.22198476,0.00014973,2]
[391346057,1760556632330,-1200.0,0.00014998,2]
[391346058,1760556632340,-499.16617621,0.00014999,2]
[391346059,1760556632351,-460.83382379,0.00014999,2]
[391346060,1760556632360,-300.0,0.00014999,2]
[391346061,1760556632370,-150.0,0.00014999,2]
[391346062,1760556632380,-164.59617621,0.00014999,2]
[391346063,1760556632392,-135.40382379,0.00014999,2]
[391346065,1760556632401,-16585.62277622,0.00015,2]
[391346067,1760556632412,-836.36343726,0.00015,2]
[391346069,1760556632423,-1525.23305569,0.00015,2]
[391346072,1760556632443,-16275.54130564,0.00015,2]
[391346074,1760556632454,-4076.96567737,0.00015,2]
[391346076,1760556632465,-20110.6,0.00015,2]
[391346078,1760556632476,-2689.06279724,0.00015,2]
[391346080,1760556632491,-425.84451,0.00015,2]
[391346081,1760556632504,-2802.49636648,0.00015,2]
[391346087,1760556638120,-2021.58959784,0.00015,2]
[391346088,1760556638175,-11932.67379072,0.00015,2]
[391346089,1760556638187,-2150.29444335,0.00015,2]
[391346090,1760556638198,-542.46609112,0.00015,2]
[391346091,1760556638229,-3808.12801413,0.00015,2]
[391346092,1760556638285,-387.1999893,0.00015,2]
[391346093,1760556638297,-1312.17981011,0.00015,2]
[391346094,1760556638341,-946.76795744,0.00015,2]
[391346157,1760556640143,-395.34999999,0.00015,2]
[391346158,1760556640154,-270.00005,0.00015,2]
[391346159,1760556640166,-2157.92961323,0.00015,2]
[391346160,1760556640177,-336.3733244,0.00015,2]
[391346161,1760556640314,-12688.06173831,0.00015,2]
[391346162,1760556640370,-3096.16334906,0.00015,2]
[391346163,1760556640427,-4702.83488613,0.00015,2]
[391346164,1760556640439,-2238.0320767,0.00015,2]
[391346165,1760556640483,-418.54789703,0.00015,2]
[391346166,1760556640543,-12241.99999999,0.00015,2]
[391346167,1760556640601,-2335.64256114,0.00015,2]
[391346436,1760556643175,-770.10642,0.00015,2]
[391346444,1760556643231,-1149.25229633,0.00015,2]
[391346446,1760556643287,-4790.82872478,0.00015,2]
[391346454,1760556643398,-485.74255521,0.00015,2]
[391346479,1760556646882,-17712.20006857,0.00015,2]
[391346480,1760556646897,-1228.0,0.00015,2]
[391346481,1760556646909,-2033.9295,0.00015,2]
[391346482,1760556646921,-1916.868686,0.00015,2]
[391346483,1760556646937,-88708.94092205,0.00015,2]
[391346484,1760556646946,-500.0,0.00015,2]
[391346485,1760556646955,-504.60375318,0.00015,2]
[391346486,1760556646964,-300.0,0.00015068,2]
[391346487,1760556646973,-300.0,0.00015068,2]
[391346488,1760556646983,-195.0,0.00015068,2]
[391346489,1760556646992,-250.0,0.00015068,2]
[391346490,1760556647002,-250.0,0.00015068,2]
[391346491,1760556647011,-241.24429689,0.00015068,2]
[391346492,1760556647020,-2084.58579112,0.00015068,2]
[391346493,1760556647030,-195.0,0.00015068,2]
[391346494,1760556647039,-2500.0,0.00015068,2]
[391346495,1760556647048,-666.0,0.00015182,3]
[391346496,1760556647057,-250.04,0.00015274,2]
[391346497,1760556647067,-1000.0,0.00015521,2]
[391346498,1760556647076,-1127.00862939,0.00015828,2]
[391346499,1760556647086,-274.91068765,0.00015856,2]
[391346500,1760556647096,-1500.0,0.00016068,2]
[391346501,1760556647105,-255.0,0.00016124,2]
[391346502,1760556647115,-5000.00971687,0.000162,5]
[391346503,1760556647124,-392.0,0.00016416,2]
[391346504,1760556647134,-420.0,0.00016416,2]
[391346505,1760556647144,-500.0,0.00016438,2]
[391346506,1760556647153,-1680.0,0.00016498,2]
[391346507,1760556647162,-2000.0,0.00016616,2]
[391346508,1760556647171,-1127.00862939,0.00016757,2]
[391346509,1760556647181,-160.0,0.00016988,2]
[391346510,1760556647190,-475.49624517,0.0001699,2]
[391346511,1760556647200,-500.0,0.00016999,2]
[391346512,1760556647209,-500.0,0.00016999,2]
[391346513,1760556647218,-612.40483789,0.00016999,2]
[391346514,1760556647228,-1268.17044165,0.00017,2]
[391346515,1760556647238,-1268.17044164,0.00017,2]
[391346516,1760556647247,-250.0,0.00017,2]
[391346517,1760556647257,-193162.20893186,0.00017,2]
[391346518,1760556647267,-2000.0,0.00017164,2]
[391346519,1760556647278,-618.15,0.00017197,2]
[391346520,1760556647288,-1268.17044165,0.000172,2]
[391346521,1760556647297,-1268.17044164,0.000172,2]
[391346522,1760556647307,-1268.17044165,0.000173,2]
[391346523,1760556647316,-1268.17044164,0.000173,2]
[391346524,1760556647326,-178.0,0.00017339,2]
[391346525,1760556647335,-4014.0,0.00017469,2]
[391346526,1760556647344,-1182.0,0.00017469,2]
[391346527,1760556647354,-1268.17044165,0.000175,2]
[391346528,1760556647364,-1268.17044164,0.000175,2]
[391346529,1760556647373,-150.0,0.00017575,2]
[391346530,1760556647383,-191.93,0.00017622,2]
[391346531,1760556647392,-1127.00862939,0.00017685,2]
[391346532,1760556647401,-1268.17044165,0.000177,2]
[391346533,1760556647411,-1268.17044164,0.000177,2]
[391346534,1760556647420,-3076.0,0.00017744,2]
[391346535,1760556647430,-180.0,0.00017855,2]
[391346536,1760556647439,-1268.17044165,0.000179,2]
[391346537,1760556647449,-1268.17044164,0.000179,2]
[391346538,1760556647458,-587.0,0.00017966,2]
[391346539,1760556647468,-479.44,0.0001797,2]
[391346540,1760556647477,-1268.17044165,0.00018,2]
[391346541,1760556647486,-5049.46804799,0.00018,2]
[391346542,1760556647495,-1268.17044164,0.00018,2]
[391346543,1760556647505,-2351.0,0.00018148,2]
[391346544,1760556647515,-166.66,0.00018151,2]
[391346545,1760556647525,-1268.17044165,0.000182,2]
[391346546,1760556647535,-5049.46804799,0.000182,2]
[391346547,1760556647544,-1268.17044164,0.000182,2]
[391346548,1760556647556,-348.76515838,0.00018213,2]
[391346549,1760556647947,-500.0,0.00018213,2]
[391346550,1760556647957,-500.0,0.00018213,2]
[391346551,1760556647966,-500.0,0.00018213,2]
[391346552,1760556647975,-500.0,0.00018213,2]
[391346553,1760556647984,-500.0,0.00018213,2]
[391346554,1760556647993,-500.0,0.00018213,2]
[391346555,1760556648002,-500.0,0.00018213,2]
[391346556,1760556648012,-500.0,0.00018213,2]
[391346557,1760556648021,-500.0,0.00018213,2]
[391346558,1760556648030,-500.0,0.00018213,2]
[391346559,1760556648039,-500.0,0.00018213,2]
[391346560,1760556648049,-500.0,0.00018213,2]
[391346561,1760556648058,-500.0,0.00018333,2]
[391346562,1760556648067,-500.0,0.00018333,2]
[391346563,1760556648076,-500.0,0.00018333,2]
[391346564,1760556648085,-500.0,0.00018356,2]
[391346565,1760556648094,-600.0,0.00018356,2]
[391346566,1760556648104,-500.0,0.00018356,2]
[391346567,1760556648113,-150.0,0.00018358,2]
[391346568,1760556648122,-590.12611264,0.00018358,2]
[391346569,1760556648132,-150.0,0.00018358,2]
[391346570,1760556648141,-4068.66371695,0.00018358,2]
[391346571,1760556648151,-70990.22542604,0.00018392,2]
[391346572,1760556648160,-8650.81814735,0.00018392,2]
[391346573,1760556648170,-2347.98065669,0.00018392,2]
[391346574,1760556648179,-17767.00539801,0.00018394,2]
[391346575,1760556648189,-70990.22542604,0.00018399,2]
[391346576,1760556648199,-1268.17044165,0.000184,2]
[391346577,1760556648208,-5049.46804799,0.000184,2]
[391346578,1760556648218,-1268.17044164,0.000184,2]
[391346579,1760556648228,-260.22500014,0.00018403,2]
[391346580,1760556648237,-315482.0207215,0.00018403,2]
[391346581,1760556648247,-2347.98065669,0.00018405,2]
[391346582,1760556648256,-17767.00539801,0.00018406,2]
[391346583,1760556648267,-8650.81814735,0.00018407,2]
[391346584,1760556648277,-17767.00539801,0.00018408,2]
[391346585,1760556648286,-260.22500014,0.00018422,2]
[391346586,1760556648296,-2561.50170245,0.00018444,2]
[391346587,1760556648306,-2347.98065669,0.00018446,2]
[391346588,1760556648315,-16623.3797766,0.00018447,2]
[391346589,1760556648324,-2561.50170245,0.00018457,2]
[391346590,1760556648334,-16623.3797766,0.00018458,2]
[391346591,1760556648343,-8650.81814735,0.00018459,2]
[391346592,1760556648353,-315482.0207215,0.00018464,2]
[391346593,1760556648363,-70990.22542604,0.00018464,2]
[391346594,1760556648372,-260.22500014,0.00018468,2]
[391346595,1760556648382,-346.92554585,0.00018469,2]
[391346596,1760556648391,-277.35679052,0.00018469,2]
[391346597,1760556648401,-16623.3797766,0.00018471,2]
[391346598,1760556648411,-2561.50170245,0.00018474,2]
[391346599,1760556648424,-315482.0207215,0.0001849,2]
[391346600,1760556648435,-5049.46804799,0.000185,2]
[391346601,1760556648445,-500.0,0.000185,2]
[391346602,1760556648455,-500.0,0.000185,2]
[391346603,1760556648466,-1268.17044165,0.000186,2]
[391346604,1760556648478,-1268.17044164,0.000186,2]
[391346605,1760556648489,-844.95470467,0.00018613,2]
[391346606,1760556648505,-601.715,0.00018613,2]
[391346607,1760556648524,-9080.00000001,0.00018613,2]
[391346608,1760556648538,-315.66942382,0.00018613,2]
[391346609,1760556648554,-17836.05875691,0.00018613,2]
[391346610,1760556648567,-35241.52133642,0.00018613,2]
[391346611,1760556648578,-1127.00862939,0.00018614,2]
[391346612,1760556648589,-5049.46804799,0.000187,2]
[391346613,1760556648599,-166.66,0.0001875,2]
[391346614,1760556648610,-500.0,0.0001876,2]
[391346615,1760556648620,-1000.0,0.0001876,2]
[391346616,1760556648630,-591.79461107,0.0001876,2]
[391346617,1760556648641,-1000.0,0.0001876,2]
[391346618,1760556648651,-1000.0,0.0001876,2]
[391346619,1760556648662,-1000.0,0.0001876,2]
[391346620,1760556648672,-1000.0,0.0001876,2]
[391346621,1760556648682,-1000.0,0.0001876,2]
[391346622,1760556648692,-1000.0,0.0001876,2]
[391346623,1760556648702,-456.54737513,0.0001876,2]
[391346624,1760556648716,-543.45262487,0.0001876,2]
[391346625,1760556648726,-1000.0,0.0001876,2]
[391346626,1760556648736,-1000.0,0.0001876,2]
[391346627,1760556648745,-500.0,0.00018774,2]
[391346628,1760556648755,-500.0,0.00018774,2]
[391346629,1760556648770,-2111.61126599,0.000188,2]
[391346630,1760556648780,-1000.0,0.00018881,2]
[391346631,1760556648789,-670.64961582,0.00018881,2]
[391346632,1760556648801,-329.35038418,0.00018881,2]
[391346633,1760556648810,-660.59176876,0.00018881,2]
[391346634,1760556648820,-5049.46804799,0.000189,2]
[391346635,1760556648831,-1700.0,0.000189,6]
[391346636,1760556648841,-500.0,0.00018973,2]
[391346637,1760556648851,-500.0,0.00018973,2]
[391346638,1760556648861,-1312.17981011,0.00018999,5]
[391346639,1760556648871,-4925.45253413,0.00019,2]
[391346640,1760556648887,-20784.89639674,0.00019,2]
[391346641,1760556801050,500.0,0.00025936,120]
[391346643,1760557108937,1600.0,0.00025258,120]
[391346644,1760557197263,1923.2046895,0.00027397,120]
[391346645,1760557202577,3188.364348,0.0002739,120]
[391346646,1760557252172,152.73,8.544e-05,2]
[391346647,1760557252390,152.73,9.256e-05,2]
[391346648,1760557252599,152.73,9.968e-05,2]
[391346649,1760557252827,152.73,0.00010679,2]
[391346650,1760557253050,152.73,0.00011391,2]
[391346651,1760557253312,152.73,0.00012103,2]
[391346652,1760557398597,506.058053,0.00025799,120]
[391346653,1760557402371,500.0,0.00025799,120]
[391346654,1760557402802,500.0,0.00027396,120]
[391346658,1760557694454,299.0,0.00027261,120]
[391346661,1760557753901,-152.73,0.00012815,2]
[391346662,1760557753924,-17.28831772,0.00013137,2]
[391346669,1760557833312,-132.71168228,0.00013137,2]
[391346670,1760557833322,-361.110072,0.00013459,2]
[391346671,1760557833332,-152.73,0.00013527,2]
[391346672,1760557833341,-1.89945246,0.00013621,2]
[391346673,1760557833353,-165.57973284,0.00013621,2]
[391346674,1760557833362,-568.98289082,0.00014094,2]
[391346675,1760557833374,-631.01710918,0.00014094,2]
[391346676,1760557833383,-532.48195731,0.00014095,2]
[391346677,1760557833395,-667.51804269,0.00014095,2]
[391346678,1760557833404,-300.0,0.00014095,2]
[391346679,1760557833413,-150.0,0.00014096,2]
[391346680,1760557833423,-300.0,0.00014097,2]
[391346681,1760557833433,-384.7408147,0.00014097,2]
[391346682,1760557833443,-250.0,0.00014097,2]
[391346683,1760557833452,-562.47298513,0.00014097,2]
[391346684,1760557833462,-195.0,0.00014097,2]
[391346685,1760557833471,-2500.0,0.00014097,2]
[391346686,1760557833480,-2500.0,0.00014097,2]
[391346687,1760557833489,-195.0,0.00014097,2]
[391346688,1760557833499,-300.0,0.00014097,2]
[391346689,1760557833508,-195.0,0.00014097,2]
[391346690,1760557833517,-150.0,0.00014097,2]
[391346691,1760557833526,-300.0,0.00014097,2]
[391346692,1760557833537,-152.73,0.00014239,2]
[391346693,1760557833546,-300.0,0.00014451,2]
[391346694,1760557833555,-169.9905,0.00014451,2]
[391346695,1760557833564,-2500.0,0.00014451,2]
[391346696,1760557833574,-2500.0,0.00014451,2]
[391346697,1760557833583,-2500.0,0.00014451,2]
[391346698,1760557833592,-152.73,0.00014951,2]
[391346699,1760557833602,-255.0,0.00015224,2]
[391346700,1760557833611,-420.0,0.0001544,2]
[391346701,1760557833621,-1680.0,0.00015503,2]
[391346702,1760557833630,-1000.0,0.00015505,2]
[391346703,1760557833640,-152.73,0.00015663,2]
[391346704,1760557833649,-160.0,0.00015796,2]
[391346705,1760557833658,-475.49624517,0.00015797,2]
[391346706,1760557833668,-166.66,0.00016233,2]
[391346707,1760557833678,-152.73,0.00016375,2]
[391346708,1760557833687,-295.0,0.00016436,2]
[391346709,1760557833696,-500.0,0.00016438,2]
[391346710,1760557833706,-1000.0,0.00016478,2]
[391346711,1760557833715,-166.66,0.00016575,2]
[391346712,1760557833725,-1567.16,0.00016652,2]
[391346713,1760557833735,-1600.0,0.00016838,2]
[391346714,1760557833745,-161.7355971,0.00016901,2]
[391346715,1760557833754,-166.66,0.00016916,2]
[391346716,1760557833763,-300.0,0.00016968,2]
[391346717,1760557833773,-3804.51132494,0.00017,2]
[391346718,1760557833783,-1902.25566247,0.00017,2]
[391346719,1760557833793,-250.0,0.00017,2]
[391346720,1760557833802,-2351.0,0.00017054,2]
[391346721,1760557833811,-250.0,0.00017087,7]
[391346722,1760557833822,-152.73,0.00017087,2]
[391346723,1760557833831,-3804.51132494,0.000172,2]
[391346724,1760557833841,-514.45425584,0.000172,2]
[391346725,1760557833854,-1342.66153107,0.000172,2]
[391346726,1760557833876,-45.13987556,0.000172,2]
[391346727,1760557833885,-166.66,0.00017258,2]
[391346728,1760557833898,-487.5671525,0.000173,2]
[391346729,1760557833909,-936.02531955,0.000173,2]
[391346730,1760557833920,-2380.91885289,0.000173,2]
[391346731,1760557833931,-1123.0,0.0001733,2]
[391346732,1760557833940,-201.0,0.00017366,2]
[391346733,1760557833949,-3804.51132494,0.000175,2]
[391346734,1760557833959,-166.66,0.000176,2]
[391346735,1760557834368,-3804.51132494,0.000177,2]
[391346736,1760557834385,-271.0,0.00017781,2]
[391346737,1760557834395,-1000.0,0.00017868,2]
[391346738,1760557834405,-3076.0,0.00017869,2]
[391346739,1760557834414,-787.411,0.00017869,2]
[391346740,1760557834424,-3405.0,0.00017869,2]
[391346741,1760557834436,-1266.0,0.00017869,2]
[391346742,1760557834446,-2049.0,0.00017869,2]
[391346743,1760557834456,-604.0,0.00017869,2]
[391346744,1760557834465,-1587.0,0.00017869,2]
[391346745,1760557834474,-571.0,0.00017869,2]
[391346746,1760557834484,-1309.548,0.00017869,2]
[391346747,1760557834493,-816.0,0.00017869,2]
[391346748,1760557834502,-4014.0,0.00017869,2]
[391346749,1760557834512,-1182.0,0.00017869,2]
[391346750,1760557834522,-902.0,0.00017869,2]
[391346751,1760557834532,-3804.51132494,0.000179,2]
[391346752,1760557834541,-166.66,0.00017942,2]
[391346753,1760557834551,-2019.7872192,0.00018,2]
[391346754,1760557834560,-3804.51132494,0.00018,2]
[391346755,1760557834570,-150.0,0.00018,2]
[391346756,1760557834579,-150.0,0.00018,2]
[391346757,1760557834589,-150.0,0.00018,2]
[391346758,1760557834599,-150.0,0.00018,2]
[391346759,1760557834608,-1000.0,0.00018082,2]
[391346760,1760557834618,-2019.7872192,0.000182,2]
[391346761,1760557834627,-3804.51132494,0.000182,2]
[391346762,1760557834637,-500.0,0.00018322,2]
[391346763,1760557834647,-300.0,0.00018338,2]
[391346764,1760557834657,-500.0,0.00018356,2]
[391346765,1760557834667,-500.0,0.00018356,2]
[391346766,1760557834678,-500.0,0.00018356,2]
[391346767,1760557834688,-501.55726296,0.0001839,2]
[391346768,1760557834698,-2019.7872192,0.000184,2]
[391346769,1760557834708,-3804.51132494,0.000184,2]
[391346770,1760557834718,-2019.7872192,0.000185,2]
[391346771,1760557834728,-402.31,0.00018504,3]
[391346772,1760557834738,-2931.8845388,0.00018514,2]
[391346773,1760557834747,-39448.5140249,0.00018514,2]
[391346774,1760557834756,-1914.9064695,0.00018514,2]
[391346775,1760557834766,-7722.05,0.00018533,2]
[391346776,1760557834775,-444.98,0.00018533,2]
[391346777,1760557834789,-1000.0,0.00018538,2]
[391346778,1760557834799,-2000.0,0.00018582,2]
[391346779,1760557834808,-2000.0,0.00018582,2]
[391346780,1760557834818,-2000.0,0.00018582,2]
[391346781,1760557834828,-500.0,0.00018582,2]
[391346782,1760557834838,-2000.0,0.00018582,2]
[391346783,1760557834848,-500.0,0.00018582,2]
[391346784,1760557834857,-2000.0,0.00018582,2]
[391346785,1760557834867,-500.0,0.00018582,2]
[391346786,1760557834877,-2000.0,0.00018582,2]
[391346787,1760557834888,-300.0,0.00018582,2]
[391346788,1760557834900,-500.0,0.00018582,2]
[391346789,1760557834911,-2000.0,0.00018582,2]
[391346790,1760557834930,-500.0,0.00018582,2]
[391346791,1760557834943,-2000.0,0.00018582,2]
[391346792,1760557834954,-500.0,0.00018582,2]
[391346793,1760557834964,-2000.0,0.00018582,2]
[391346794,1760557834977,-500.0,0.00018582,2]
[391346795,1760557834986,-2000.0,0.00018582,2]
[391346796,1760557834996,-500.0,0.00018582,2]
[391346797,1760557835006,-2000.0,0.00018582,2]
[391346798,1760557835016,-500.0,0.00018582,2]
[391346799,1760557835026,-2000.0,0.00018582,2]
[391346800,1760557835041,-500.0,0.00018582,2]
[391346801,1760557835052,-500.0,0.00018582,2]
[391346802,1760557835061,-500.0,0.00018582,2]
[391346803,1760557835071,-500.0,0.00018582,2]
[391346804,1760557835082,-500.0,0.00018582,2]
[391346805,1760557835092,-2000.0,0.00018582,2]
[391346806,1760557835102,-2000.0,0.00018582,2]
[391346807,1760557835112,-300.0,0.00018582,2]
[391346808,1760557835121,-2000.0,0.00018582,2]
[391346809,1760557835131,-2000.0,0.00018582,2]
[391346810,1760557835141,-2000.0,0.00018582,2]
[391346811,1760557835151,-2000.0,0.00018582,2]
[391346812,1760557835161,-2000.0,0.00018582,2]
[391346813,1760557835170,-2000.0,0.00018582,2]
[391346814,1760557835180,-2000.0,0.00018582,2]
[391346815,1760557835189,-2000.0,0.00018582,2]
[391346816,1760557835199,-2000.0,0.00018582,2]
[391346817,1760557835208,-2000.0,0.00018582,2]
[391346818,1760557835218,-2000.0,0.00018582,2]
[391346819,1760557835227,-1590.0,0.00018582,2]
[391346820,1760557835237,-2000.0,0.00018582,2]
[391346821,1760557835246,-277.35679052,0.00018582,2]
[391346822,1760557835256,-864.14666999,0.00018582,2]
[391346823,1760557835265,-250.0,0.00018582,2]
[391346824,1760557835274,-358.0422157,0.00018582,2]
[391346825,1760557835287,-500.0,0.00018582,2]
[391346826,1760557835297,-500.0,0.00018582,2]
[391346827,1760557835307,-500.0,0.00018582,2]
[391346828,1760557835317,-500.0,0.00018582,2]
[391346829,1760557835327,-500.0,0.00018582,2]